fUSD/lending_fUSD_20260521
["ID","MTS","AMOUNT","RATE_DAILY","PERIOD"]
[422758907,1779371477000,-1474.0,0.00029741,30]
[422758908,1779371477000,-180.0,0.00029741,30]
[422758914,1779371477000,-304.0,0.00029747,30]
[422758906,1779371477000,-509.0,0.00029741,30]
[422758905,1779371477000,-151.0,0.00029741,30]
[422758900,1779371477000,-1365.71,0.00029192,30]
[422758899,1779371477000,-1365.71,0.00029184,30]
[422758901,1779371477000,-900.0,0.00029458,60]
[422758898,1779371477000,-1365.71,0.00029176,30]
[422758904,1779371477000,-216.0,0.0002974,30]
[422758903,1779371477000,-212.0,0.0002974,30]
[422758902,1779371477000,-1104.75,0.00029634,120]
[422758928,1779371478000,-236.0,0.00030741,30]
[422758926,1779371478000,-1474.0,0.00030741,30]
[422758930,1779371478000,-214.0,0.00030741,30]
[422758931,1779371478000,-187.0,0.00030741,30]
[422758929,1779371478000,-435.0,0.00030741,30]
[422758925,1779371478000,-509.0,0.00030741,30]
[422758927,1779371478000,-180.0,0.00030741,30]
[422758924,1779371478000,-151.0,0.00030741,30]
[422758919,1779371478000,-880.85,0.00030137,30]
[422758922,1779371478000,-212.0,0.0003074,30]
[422758921,1779371478000,-194.78,0.00030411,120]
[422758920,1779371478000,-184.52,0.00030137,30]
[422758918,1779371478000,-1730.57986974,0.0003013,30]
[422758917,1779371478000,-32806.6726771,0.0003013,30]
[422758916,1779371478000,-1500.0,0.00030006,60]
[422758932,1779371478000,-841.0,0.00030747,30]
[422758923,1779371478000,-216.0,0.0003074,30]
[422758934,1779371478000,-2900.0,0.000309,120]
[422758949,1779371478000,-435.0,0.00031741,30]
[422758933,1779371478000,-304.0,0.00030747,30]
[422758935,1779371478000,-338.13040922,0.0003092,30]
[422758952,1779371478000,-841.0,0.00031747,30]
[422758951,1779371478000,-187.0,0.00031741,30]
[422758953,1779371478000,-304.0,0.00031747,30]
[422758950,1779371478000,-214.0,0.00031741,30]
[422758946,1779371478000,-1474.0,0.00031741,30]
[422758945,1779371478000,-509.0,0.00031741,30]
[422758947,1779371478000,-180.0,0.00031741,30]
[422758948,1779371478000,-236.0,0.00031741,30]
[422758943,1779371478000,-216.0,0.0003174,30]
[422758944,1779371478000,-151.0,0.00031741,30]
[422758936,1779371478000,-180.0,0.00031,120]
[422758937,1779371478000,-1104.75,0.00031013,120]
[422758939,1779371478000,-9633.31385974,0.00031543,56]
[422758938,1779371478000,-900.0,0.00031102,60]
[422758942,1779371478000,-212.0,0.0003174,30]
[422758940,1779371478000,-1500.0,0.0003165,60]
[422758941,1779371478000,-338.13040922,0.00031703,30]
[422758966,1779371479000,-214.0,0.00032741,30]
[422758972,1779371479000,-3640.0,0.00032877,120]
[422758970,1779371479000,-304.0,0.00032747,30]
[422758969,1779371479000,-841.0,0.00032747,30]
[422758968,1779371479000,-900.0,0.00032746,60]
[422758967,1779371479000,-187.0,0.00032741,30]
[422758965,1779371479000,-435.0,0.00032741,30]
[422758964,1779371479000,-236.0,0.00032741,30]
[422758954,1779371479000,-2900.0,0.000319,120]
[422758962,1779371479000,-1474.0,0.00032741,30]
[422758961,1779371479000,-509.0,0.00032741,30]
[422758959,1779371479000,-216.0,0.0003274,30]
[422758960,1779371479000,-151.0,0.00032741,30]
[422758958,1779371479000,-212.0,0.0003274,30]
[422758957,1779371479000,-338.13040922,0.00032485,30]
[422758956,1779371479000,-855.93,0.00032405,30]
[422758955,1779371479000,-1104.75,0.00032051,120]
[422758963,1779371479000,-180.0,0.00032741,30]
[422758971,1779371479000,-10000.0,0.000328,30]
[422758973,1779371479000,-811.0,0.00032877,30]
[422758976,1779371479000,-2841.18,0.00033,30]
[422758991,1779371479000,-509.0,0.00033741,30]
[422758974,1779371479000,-2933.6,0.000329,120]
[422758990,1779371479000,-151.0,0.00033741,30]
[422758989,1779371479000,-216.0,0.0003374,30]
[422758988,1779371479000,-212.0,0.0003374,30]
[422758987,1779371479000,-5343.6446,0.00033595,30]
[422758985,1779371479000,-4068.22664634,0.00033279,120]
[422758986,1779371479000,-1500.0,0.00033294,60]
[422758992,1779371479000,-1474.0,0.00033741,30]
[422758983,1779371479000,-507.643055,0.00033266,120]
[422758982,1779371479000,-1104.75,0.0003324,120]
[422758981,1779371479000,-392.89534465,0.00033123,120]
[422758980,1779371479000,-2712.06,0.00033074,30]
[422758979,1779371479000,-5000.0,0.00033074,30]
[422758975,1779371479000,-200.0,0.00033,120]
[422758978,1779371479000,-5000.0,0.00033074,30]
[422758977,1779371479000,-5193.35661701,0.00033,30]
[422758984,1779371479000,-1025.24040921,0.00033268,30]
[422759005,1779371480000,-178.182321,0.00034335,30]
[422759002,1779371480000,-1197.01040922,0.00034051,30]
[422759003,1779371480000,-855.93,0.00034177,60]
[422759004,1779371480000,-177.61621987,0.00034247,30]
[422759001,1779371480000,-170.0,0.00034,120]
[422758999,1779371480000,-304.0,0.00033747,30]
[422758997,1779371480000,-187.0,0.00033741,30]
[422758998,1779371480000,-841.0,0.00033747,30]
[422758994,1779371480000,-236.0,0.00033741,30]
[422758996,1779371480000,-214.0,0.00033741,30]
[422758995,1779371480000,-435.0,0.00033741,30]
[422758993,1779371480000,-180.0,0.00033741,30]
[422759006,1779371480000,-900.0,0.0003439,60]
[422759000,1779371480000,-4068.22664634,0.00033843,120]
[422759007,1779371480000,-4068.22664634,0.00034408,120]
[422759023,1779371480000,-187.0,0.00034741,30]
[422759010,1779371480000,-1530.02,0.00034544,60]
[422759009,1779371480000,-181.88,0.00034544,60]
[422759022,1779371480000,-214.0,0.00034741,30]
[422759021,1779371480000,-435.0,0.00034741,30]
[422759019,1779371480000,-180.0,0.00034741,30]
[422759018,1779371480000,-1474.0,0.00034741,30]
[422759017,1779371480000,-509.0,0.00034741,30]
[422759020,1779371480000,-236.0,0.00034741,30]
[422759015,1779371480000,-216.0,0.0003474,30]
[422759012,1779371480000,-1981.5,0.00034544,60]
[422759014,1779371480000,-212.0,0.0003474,30]
[422759013,1779371480000,-235.73720679,0.00034548,120]
[422759011,1779371480000,-6636.25,0.00034544,60]
[422759008,1779371480000,-329.24,0.00034544,60]
[422759016,1779371480000,-151.0,0.00034741,30]
[422759033,1779371481000,-1104.75,0.00034999,120]
[422759038,1779371481000,-105024.29269501,0.00035,30]
[422759039,1779371481000,-118887.7477495,0.00035,30]
[422759037,1779371481000,-1104.9284352,0.00034999,120]
[422759036,1779371481000,-1104.75,0.00034999,120]
[422759034,1779371481000,-1104.75,0.00034999,120]
[422759035,1779371481000,-1104.75,0.00034999,120]
[422759032,1779371481000,-1104.75,0.00034989,120]
[422759025,1779371481000,-304.0,0.00034747,30]
[422759030,1779371481000,-1500.0,0.00034938,60]
[422759027,1779371481000,-823.82,0.000348,120]
[422759029,1779371481000,-2933.6,0.000349,120]
[422759026,1779371481000,-1186.08,0.000348,120]
[422759028,1779371481000,-1368.79040922,0.00034834,30]
[422759041,1779371481000,-5001.66719867,0.00035,120]
[422759024,1779371481000,-841.0,0.00034747,30]
[422759031,1779371481000,-4068.22664634,0.00034973,120]
[422759044,1779371481000,-999.0,0.00035,120]
[422759040,1779371481000,-5591.42135128,0.00035,30]
[422759043,1779371481000,-999.0,0.00035,120]
[422759042,1779371481000,-999.0,0.00035,120]
[422759060,1779371481000,-393.9855,0.000352,120]
[422759059,1779371481000,-1000.0,0.000352,30]
[422759058,1779371481000,-231.1,0.0003513,30]
[422759057,1779371481000,-157.15813786,0.00035111,120]
[422759053,1779371481000,-169.05932979,0.00035089,30]
[422759055,1779371481000,-1734.62772924,0.00035099,30]
[422759054,1779371481000,-346.92554585,0.00035099,30]
[422759056,1779371481000,-296.52,0.000351,90]
[422759051,1779371481000,-500.0,0.00035089,30]
[422759049,1779371481000,-499.12769658,0.00035,30]
[422759050,1779371481000,-547.63289299,0.00035,120]
[422759048,1779371481000,-29285.04212873,0.00035,30]
[422759047,1779371481000,-170.0,0.00035,120]
[422759045,1779371481000,-792.235,0.00035,120]
[422759046,1779371481000,-429.6296765,0.00035,30]
[422759061,1779371481000,-296.58,0.000354,120]
[422759052,1779371481000,-500.0,0.00035089,30]
[422759073,1779371482000,-500.0,0.00035543,120]
[422759076,1779371482000,-500.0,0.00035543,120]
[422759077,1779371482000,-500.0,0.00035543,120]
[422759075,1779371482000,-500.0,0.00035543,120]
[422759074,1779371482000,-500.0,0.00035543,120]
[422759072,1779371482000,-500.0,0.00035543,120]
[422759071,1779371482000,-500.0,0.00035543,120]
[422759062,1779371482000,-4068.22664634,0.00035538,120]
[422759070,1779371482000,-500.0,0.00035543,120]
[422759068,1779371482000,-500.0,0.00035543,120]
[422759065,1779371482000,-500.0,0.00035543,120]
[422759067,1779371482000,-500.0,0.00035543,120]
[422759066,1779371482000,-573.2085415,0.00035543,120]
[422759064,1779371482000,-500.0,0.00035543,120]
[422759063,1779371482000,-217.642865,0.00035543,120]
[422759078,1779371482000,-193.4343981,0.00035543,120]
[422759069,1779371482000,-500.0,0.00035543,120]
[422759081,1779371482000,-447.2562446,0.00035543,120]
[422759079,1779371482000,-500.0,0.00035543,120]
[422759080,1779371482000,-500.0,0.00035543,120]
[422759099,1779371482000,-500.0,0.00035543,120]
[422759098,1779371482000,-500.0,0.00035543,120]
[422759097,1779371482000,-500.0,0.00035543,120]
[422759095,1779371482000,-500.0,0.00035543,120]
[422759096,1779371482000,-500.0,0.00035543,120]
[422759094,1779371482000,-500.0,0.00035543,120]
[422759093,1779371482000,-785.8284181,0.00035543,120]
[422759091,1779371482000,-908.8577954,0.00035543,120]
[422759082,1779371482000,-500.0,0.00035543,120]
[422759090,1779371482000,-848.5782132,0.00035543,120]
[422759089,1779371482000,-500.0,0.00035543,120]
[422759088,1779371482000,-500.0,0.00035543,120]
[422759084,1779371482000,-573.5861816,0.00035543,120]
[422759086,1779371482000,-500.0,0.00035543,120]
[422759087,1779371482000,-500.0,0.00035543,120]
[422759085,1779371482000,-603.4292871,0.00035543,120]
[422759083,1779371482000,-500.0,0.00035543,120]
[422759092,1779371482000,-188.7290892,0.00035543,120]
[422759113,1779371483000,-500.0,0.00035543,120]
[422759112,1779371483000,-500.0,0.00035543,120]
[422759117,1779371483000,-500.0,0.00035543,120]
[422759116,1779371483000,-500.0,0.00035543,120]
[422759115,1779371483000,-500.0,0.00035543,120]
[422759111,1779371483000,-500.0,0.00035543,120]
[422759114,1779371483000,-500.0,0.00035543,120]
[422759110,1779371483000,-500.0,0.00035543,120]
[422759105,1779371483000,-500.0,0.00035543,120]
[422759108,1779371483000,-500.0,0.00035543,120]
[422759107,1779371483000,-500.0,0.00035543,120]
[422759106,1779371483000,-332.6876108,0.00035543,120]
[422759103,1779371483000,-500.0,0.00035543,120]
[422759104,1779371483000,-993.4590643,0.00035543,120]
[422759101,1779371483000,-585.6379166,0.00035543,120]
[422759102,1779371483000,-500.0,0.00035543,120]
[422759118,1779371483000,-859.7726348,0.00035543,120]
[422759109,1779371483000,-500.0,0.00035543,120]
[422759100,1779371483000,-500.0,0.00035543,120]
[422759120,1779371483000,-500.0,0.00035543,120]
[422759122,1779371483000,-500.0,0.00035543,120]
[422759119,1779371483000,-500.0,0.00035543,120]
[422759137,1779371483000,-500.0,0.00035543,120]
[422759136,1779371483000,-500.0,0.00035543,120]
[422759135,1779371483000,-500.0,0.00035543,120]
[422759134,1779371483000,-500.0,0.00035543,120]
[422759133,1779371483000,-500.0,0.00035543,120]
[422759131,1779371483000,-500.0,0.00035543,120]
[422759132,1779371483000,-500.0,0.00035543,120]
[422759138,1779371483000,-500.0,0.00035543,120]
[422759128,1779371483000,-500.0,0.00035543,120]
[422759129,1779371483000,-500.0,0.00035543,120]
[422759127,1779371483000,-500.0,0.00035543,120]
[422759126,1779371483000,-999.7680677,0.00035543,120]
[422759125,1779371483000,-500.0,0.00035543,120]
[422759123,1779371483000,-500.0,0.00035543,120]
[422759124,1779371483000,-500.0,0.00035543,120]
[422759121,1779371483000,-500.0,0.00035543,120]
[422759130,1779371483000,-966.0153281,0.00035543,120]
[422759153,1779371484000,-236.0,0.00035741,30]
[422759154,1779371484000,-435.0,0.00035741,30]
[422759152,1779371484000,-180.0,0.00035741,30]
[422759148,1779371484000,-216.0,0.0003574,30]
[422759151,1779371484000,-1474.0,0.00035741,30]
[422759150,1779371484000,-509.0,0.00035741,30]
[422759149,1779371484000,-153.18745695,0.00035741,30]
[422759141,1779371484000,-150.0,0.00035616,60]
[422759144,1779371484000,-11910.24382684,0.00035681,86]
[422759146,1779371484000,-296.52,0.000357,120]
[422759145,1779371484000,-1370.43,0.000357,120]
[422759143,1779371484000,-231.1,0.0003567,80]
[422759142,1779371484000,-3416.04651211,0.00035616,30]
[422759140,1779371484000,-790.2675249,0.00035543,120]
[422759139,1779371484000,-500.0,0.00035543,120]
[422759147,1779371484000,-212.0,0.0003574,30]
[422759155,1779371484000,-214.0,0.00035741,30]
[422759158,1779371484000,-304.0,0.00035747,30]
[422759157,1779371484000,-841.0,0.00035747,30]
[422759173,1779371484000,-190.740731,0.00036311,31]
[422759174,1779371484000,-269089.0,0.000364,30]
[422759171,1779371484000,-231.1,0.0003621,110]
[422759172,1779371484000,-177.04,0.00036294,120]
[422759170,1779371484000,-2244.3,0.00036153,30]
[422759167,1779371484000,-1641.91,0.00036,60]
[422759169,1779371484000,-4068.22664634,0.00036103,120]
[422759168,1779371484000,-900.0,0.00036034,60]
[422759156,1779371484000,-187.0,0.00035741,30]
[422759166,1779371484000,-583.665,0.00036,120]
[422759164,1779371484000,-5000.0,0.00036,60]
[422759163,1779371484000,-855.93,0.0003595,60]
[422759162,1779371484000,-1672.7364795,0.00035919,30]
[422759159,1779371484000,-513.83976083,0.00035787,87]
[422759161,1779371484000,-334.5472959,0.00035919,30]
[422759160,1779371484000,-1148.61238261,0.00035919,30]
[422759165,1779371484000,-10000.0,0.00036,120]
[422759191,1779371485000,-153.0,0.00037,120]
[422759190,1779371485000,-2075.07,0.00037,30]
[422759189,1779371485000,-424.39,0.00036997,60]
[422759187,1779371485000,-424.39,0.00036897,60]
[422759188,1779371485000,-1141.1,0.000369,120]
[422759186,1779371485000,-424.39,0.00036797,60]
[422759185,1779371485000,-196.88898,0.00036766,120]
[422759183,1779371485000,-295.760327,0.00036734,30]
[422759182,1779371485000,-150.0,0.00036731,30]
[422759179,1779371485000,-443.97,0.000366,120]
[422759180,1779371485000,-948061.8736,0.00036643,30]
[422759176,1779371485000,-1062.81,0.00036483,120]
[422759177,1779371485000,-1500.0,0.00036582,60]
[422759178,1779371485000,-813.06,0.000366,120]
[422759175,1779371485000,-11441.84421211,0.00036445,30]
[422759192,1779371485000,-1641.91,0.00037,75]
[422759184,1779371485000,-231.1,0.0003676,120]
[422759194,1779371485000,-1107.63007,0.00037032,30]
[422759181,1779371485000,-296.52,0.000367,60]
[422759195,1779371485000,-322.6107,0.00037032,30]
[422759212,1779371485000,-5416.34323529,0.000372,120]
[422759193,1779371485000,-150.0,0.00037006,120]
[422759211,1779371485000,-5416.34323529,0.000372,120]
[422759207,1779371485000,-459.452307,0.000372,36]
[422759210,1779371485000,-5416.34323529,0.000372,120]
[422759205,1779371485000,-337.36,0.00037198,30]
[422759208,1779371485000,-452.490909,0.000372,36]
[422759206,1779371485000,-452.490909,0.000372,36]
[422759209,1779371485000,-5416.3432353,0.000372,120]
[422759203,1779371485000,-394.83,0.0003716,60]
[422759201,1779371485000,-153.0,0.00037125,120]
[422759202,1779371485000,-153.0,0.00037125,120]
[422759200,1779371485000,-424.3972027,0.00037097,60]
[422759199,1779371485000,-1000.0,0.00037055,70]
[422759197,1779371485000,-500.0,0.00037032,30]
[422759198,1779371485000,-500.0,0.00037032,30]
[422759196,1779371485000,-1613.0535,0.00037032,30]
[422759204,1779371485000,-505.74,0.00037172,60]
[422759226,1779371486000,-153.0,0.000375,120]
[422759224,1779371486000,-246.55549017,0.000375,120]
[422759223,1779371486000,-505.74,0.00037472,60]
[422759220,1779371486000,-505.74,0.00037372,60]
[422759222,1779371486000,-183.67029308,0.000374,30]
[422759221,1779371486000,-183.67029308,0.000374,30]
[422759217,1779371486000,-231.1,0.000373,60]
[422759218,1779371486000,-203.26,0.000373,60]
[422759216,1779371486000,-4381.16715762,0.00037289,120]
[422759215,1779371486000,-505.74,0.00037272,60]
[422759213,1779371486000,-5416.34323529,0.000372,120]
[422759214,1779371486000,-153.0,0.0003725,120]
[422759219,1779371486000,-989.05140985,0.00037314,96]
[422759225,1779371486000,-602.0,0.000375,120]
[422759227,1779371486000,-282.2008379,0.00037513,120]
[422759228,1779371486000,-500.0,0.00037513,120]
[422759229,1779371486000,-281.25,0.00037513,120]
[422759242,1779371486000,-281.25,0.00037513,120]
[422759240,1779371486000,-500.0,0.00037513,120]
[422759241,1779371486000,-500.0,0.00037513,120]
[422759239,1779371486000,-500.0,0.00037513,120]
[422759235,1779371486000,-500.0,0.00037513,120]
[422759238,1779371486000,-500.0,0.00037513,120]
[422759237,1779371486000,-573.2085415,0.00037513,120]
[422759234,1779371486000,-500.0,0.00037513,120]
[422759233,1779371486000,-500.0,0.00037513,120]
[422759232,1779371486000,-500.0,0.00037513,120]
[422759230,1779371486000,-217.6428649,0.00037513,120]
[422759231,1779371486000,-500.0,0.00037513,120]
[422759236,1779371486000,-500.0,0.00037513,120]
[422759251,1779371487000,-193.434398,0.00037513,120]
[422759256,1779371487000,-447.2562446,0.00037513,120]
[422759252,1779371487000,-227.8125,0.00037513,120]
[422759254,1779371487000,-500.0,0.00037513,120]
[422759253,1779371487000,-163.2073918,0.00037513,120]
[422759249,1779371487000,-500.0,0.00037513,120]
[422759255,1779371487000,-281.25,0.00037513,120]
[422759248,1779371487000,-500.0,0.00037513,120]
[422759246,1779371487000,-500.0,0.00037513,120]
[422759247,1779371487000,-500.0,0.00037513,120]
[422759245,1779371487000,-500.0,0.00037513,120]
[422759243,1779371487000,-500.0,0.00037513,120]
[422759244,1779371487000,-573.5861815,0.00037513,120]
[422759250,1779371487000,-603.429287,0.00037513,120]
[422759257,1779371487000,-500.0,0.00037513,120]
[422759273,1779371487000,-500.0,0.00037513,120]
[422759260,1779371487000,-500.0,0.00037513,120]
[422759259,1779371487000,-260.2998169,0.00037513,120]
[422759274,1779371487000,-281.25,0.00037513,120]
[422759272,1779371487000,-500.0,0.00037513,120]
[422759271,1779371487000,-500.0,0.00037513,120]
[422759269,1779371487000,-848.5782132,0.00037513,120]
[422759268,1779371487000,-500.0,0.00037513,120]
[422759266,1779371487000,-500.0,0.00037513,120]
[422759270,1779371487000,-500.0,0.00037513,120]
[422759265,1779371487000,-500.0,0.00037513,120]
[422759267,1779371487000,-500.0,0.00037513,120]
[422759263,1779371487000,-500.0,0.00037513,120]
[422759262,1779371487000,-281.25,0.00037513,120]
[422759261,1779371487000,-500.0,0.00037513,120]
[422759258,1779371487000,-281.25,0.00037513,120]
[422759264,1779371487000,-500.0,0.00037513,120]
[422759282,1779371488000,-188.7290891,0.00037513,120]
[422759290,1779371488000,-859.7726347,0.00037513,120]
[422759289,1779371488000,-175.212254,0.00037513,120]
[422759288,1779371488000,-500.0,0.00037513,120]
[422759286,1779371488000,-500.0,0.00037513,120]
[422759287,1779371488000,-258.2750219,0.00037513,120]
[422759284,1779371488000,-500.0,0.00037513,120]
[422759276,1779371488000,-500.0,0.00037513,120]
[422759283,1779371488000,-785.828418,0.00037513,120]
[422759280,1779371488000,-500.0,0.00037513,120]
[422759281,1779371488000,-500.0,0.00037513,120]
[422759279,1779371488000,-500.0,0.00037513,120]
[422759278,1779371488000,-284.1479039,0.00037513,120]
[422759277,1779371488000,-908.8577954,0.00037513,120]
[422759275,1779371488000,-500.0,0.00037513,120]
[422759285,1779371488000,-500.0,0.00037513,120]
[422759292,1779371488000,-250.4241487,0.00037513,120]
[422759291,1779371488000,-212.6111354,0.00037513,120]
[422759296,1779371488000,-281.25,0.00037513,120]
[422759294,1779371488000,-281.25,0.00037513,120]
[422759308,1779371488000,-500.0,0.00037513,120]
[422759310,1779371488000,-500.0,0.00037513,120]
[422759309,1779371488000,-500.0,0.00037513,120]
[422759311,1779371488000,-500.0,0.00037513,120]
[422759306,1779371488000,-500.0,0.00037513,120]
[422759305,1779371488000,-500.0,0.00037513,120]
[422759304,1779371488000,-281.7890183,0.00037513,120]
[422759307,1779371488000,-500.0,0.00037513,120]
[422759301,1779371488000,-993.4590643,0.00037513,120]
[422759303,1779371488000,-332.6876107,0.00037513,120]
[422759295,1779371488000,-271.636352,0.00037513,120]
[422759298,1779371488000,-500.0,0.00037513,120]
[422759297,1779371488000,-500.0,0.00037513,120]
[422759293,1779371488000,-281.25,0.00037513,120]
[422759300,1779371488000,-585.6379166,0.00037513,120]
[422759302,1779371488000,-228.5164474,0.00037513,120]
[422759299,1779371488000,-256.5080109,0.00037513,120]
[422759321,1779371489000,-281.25,0.00037513,120]
[422759325,1779371489000,-500.0,0.00037513,120]
[422759326,1779371489000,-500.0,0.00037513,120]
[422759327,1779371489000,-500.0,0.00037513,120]
[422759324,1779371489000,-500.0,0.00037513,120]
[422759322,1779371489000,-500.0,0.00037513,120]
[422759323,1779371489000,-278.6574773,0.00037513,120]
[422759320,1779371489000,-160.5004487,0.00037513,120]
[422759312,1779371489000,-999.7680677,0.00037513,120]
[422759316,1779371489000,-500.0,0.00037513,120]
[422759329,1779371489000,-500.0,0.00037513,120]
[422759317,1779371489000,-500.0,0.00037513,120]
[422759318,1779371489000,-966.0153281,0.00037513,120]
[422759315,1779371489000,-256.0776861,0.00037513,120]
[422759313,1779371489000,-250.35,0.00037513,120]
[422759314,1779371489000,-500.0,0.00037513,120]
[422759319,1779371489000,-281.25,0.00037513,120]
[422759328,1779371489000,-500.0,0.00037513,120]
[422759344,1779371489000,-855.93,0.00037722,60]
[422759332,1779371489000,-790.2675248,0.00037513,120]
[422759346,1779371489000,-35000.0,0.0003777,30]
[422759347,1779371489000,-497.74,0.00037771,38]
[422759348,1779371489000,-505.74,0.00037772,60]
[422759343,1779371489000,-450.14,0.0003768,120]
[422759345,1779371489000,-153.0,0.0003775,120]
[422759342,1779371489000,-450.13,0.0003768,120]
[422759340,1779371489000,-505.74,0.00037672,60]
[422759339,1779371489000,-10000.0,0.00037671,30]
[422759330,1779371489000,-500.0,0.00037513,120]
[422759338,1779371489000,-4330.02,0.0003767,30]
[422759337,1779371489000,-16284.0,0.00037612,30]
[422759336,1779371489000,-1355.0,0.00037612,30]
[422759335,1779371489000,-269089.0,0.000376,30]
[422759334,1779371489000,-793.4802,0.000376,60]
[422759333,1779371489000,-505.74,0.00037572,60]
[422759331,1779371489000,-500.0,0.00037513,120]
[422759341,1779371489000,-900.0,0.00037678,60]
[422759364,1779371490000,-500.0,0.00038,120]
[422759363,1779371490000,-416.0,0.00038,120]
[422759362,1779371490000,-150000.0,0.00038,120]
[422759361,1779371490000,-467.0,0.00038,120]
[422759360,1779371490000,-1306525.8385,0.00038,30]
[422759359,1779371490000,-10000.0,0.00038,30]
[422759357,1779371490000,-505.74,0.00037972,60]
[422759356,1779371490000,-4381.16715759,0.00037948,120]
[422759355,1779371490000,-10000.0,0.00037945,30]
[422759354,1779371490000,-305385.0972,0.00037928,30]
[422759353,1779371490000,-173.27854941,0.000379,120]
[422759351,1779371490000,-231.1,0.0003784,86]
[422759352,1779371490000,-505.74,0.00037872,60]
[422759350,1779371490000,-250.0,0.0003781,30]
[422759365,1779371490000,-1012.0,0.00038,60]
[422759358,1779371490000,-2331.42206059,0.00038,31]
[422759349,1779371490000,-827.01,0.000378,120]
[422759366,1779371490000,-314.0,0.00038,120]
[422759369,1779371490000,-11741.52336476,0.00038,120]
[422759367,1779371490000,-151.0,0.00038,120]
[422759383,1779371490000,-505.74,0.00038272,60]
[422759384,1779371490000,-16218.20693139,0.000383,30]
[422759379,1779371490000,-2244.3,0.00038125,30]
[422759382,1779371490000,-153.0,0.0003825,120]
[422759380,1779371490000,-505.74,0.00038172,60]
[422759375,1779371490000,-505.74,0.00038072,60]
[422759376,1779371490000,-682.16992734,0.000381,33]
[422759381,1779371490000,-1500.0,0.00038226,60]
[422759378,1779371490000,-287.16683271,0.000381,33]
[422759374,1779371490000,-169.52,0.00038055,30]
[422759372,1779371490000,-355.0,0.00038,30]
[422759373,1779371490000,-153.0,0.00038,120]
[422759370,1779371490000,-709.0,0.00038,30]
[422759371,1779371490000,-2439.0,0.00038,30]
[422759368,1779371490000,-156.0,0.00038,120]
[422759377,1779371490000,-291.99913763,0.000381,33]
[422759395,1779371491000,-835.0,0.00038356,30]
[422759400,1779371491000,-835.0,0.00038356,30]
[422759398,1779371491000,-835.0,0.00038356,30]
[422759401,1779371491000,-835.0,0.00038356,30]
[422759399,1779371491000,-835.0,0.00038356,30]
[422759396,1779371491000,-835.0,0.00038356,30]
[422759397,1779371491000,-835.0,0.00038356,30]
[422759394,1779371491000,-835.0,0.00038356,30]
[422759385,1779371491000,-2240.0,0.00038329,120]
[422759393,1779371491000,-835.0,0.00038356,30]
[422759390,1779371491000,-250.0,0.00038356,120]
[422759391,1779371491000,-835.0,0.00038356,30]
[422759387,1779371491000,-2315.0,0.00038329,120]
[422759389,1779371491000,-1872.35142246,0.00038329,120]
[422759388,1779371491000,-2296.0,0.00038329,120]
[422759386,1779371491000,-2396.35136305,0.00038329,120]
[422759392,1779371491000,-835.0,0.00038356,30]
[422759402,1779371491000,-835.0,0.00038356,30]
[422759403,1779371491000,-835.0,0.00038356,30]